{"text_format":"1","workbook":"xlsx","n_sheets":4,"sheets":["INSTRUCTIONS","ANNUAL","MONTHLY","PRODUCT REFERENCE"],"not_rendered":{"charts":0,"images":4,"macros":1,"external_links":0,"defined_names":5,"comments":1,"pivot_tables":0},"unopened":[],"bounds":{"document_bytes":16777216,"sheet_cells":100000,"rows_first":2000,"rows_last":500,"rows_between":2000,"halvings":0,"cell_chars":16384,"cell_head_chars":4096},"cells_cut":0,"cells_raw":0,"read":"whole","date_system":"1900"}

{"sheet":"INSTRUCTIONS","index":0,"n_rows":51,"n_cols":1,"rows_kept":51,"cut":false,"hidden":false,"merged":[]}
["McCain 2019-20 Annual Commodity Planner"]
[]
["McCain Foods has developed a commodity planning tool for our school customers to utilize in planning their annual, and month-by-month demand for bulk white potato and sweet potato."]
[]
["The Planner has 3 tabs (worksheets):"]
[]
["Annual Plan calculates DF pounds and finished cases needed based on product selection, serving size, ADP, and number of menus per year. "]
[]
["Monthly Purchase/Delivery Plan spreads demand by product by month."]
[]
["Product Reference Chart lists all available products, and key product information"]
[]
["How the 2019-20 Annual Commodity Planner Works"]
[]
["(IMPORTANT! Both Planners contain macros that allow the user to easily clear/remove an individual product from the Annual and Monthly Plan tabs. A macro is activated by clicking the red arrow to the left of the product to be removed. If, upon clicking the red arrow, you receive a warning message that macros have been disabled, you must change a security setting to allow you to be prompted to enable macros. Close the Planner workbook(s) but leave Excel open. Select Tools > Macros > Security, and select the Medium security level. Now, each time you open a spreadsheet that contains macros, you will be prompted to Enable or Disable the macros. You should Enable the macros in the Planner workbook(s).)"]
[]
["Tab 1: Annual Plan"]
[]
["The Annual Plan was developed for you to determine what your annual consumption of bulk potato and sweet potato in: ‘DF’ pounds, finished cases, and contract value dollars based on the McCain products you decide to menu, and number of menu occasions these products receive multiplied by your ADP. This plan will tell you how many pounds to divert for the following school year from USDA, and how many cases per month should be shipped to you by your commercial distributor or contracted warehouse."]
[]
["Annual Product Utilization Plan:"]
[]
["With 3 well thought out inputs you will be able to understand the number of ‘DF’ pounds of commodities needed to divert to McCain, and the number of finished cases to be delivered by your distributor of choice of each desired McCain product, and rolled into a total annual plan, so you are prepared to order/survey for the 2019-20 school year. Let’s get started:"]
[]
["First, select the products from McCain that you want to menu throughout the school year, using the drop down boxes under the heading ‘Code’. All of our qualifying products are listed, you will need to scroll down to see them all."]
[]
["If you do not know our product codes, click on the cells that read ‘Bulk Raw Potato Code Reference’, and ‘Bulk Raw Sweet Potato Code Reference’, and a window will open and display all products available to you with product descriptions and codes."]
[]
["We do have a very useful Reference Chart (Tab 3) if you want to print it out or refer back and forth to it to help make product choices for the menu."]
[]
["Second, under the heading \"SERV/MEAL\", type in the number of meals you serve, (aka: ADP)."]
[]
["Third, under the heading \"MENU/YR\", type in the number of times throughout the school year you would menu the particular product you are planning for."]
[]
["After these 3 inputs, the chart will calculate the number of servings needed, the number of cases of finished goods you will need to order throughout the year, your \"DF\" pounds that would be used in each commodity category, and a summary of total pounds and contract value dollars per category."]
[]
["*Note a new field for Distributor Stocking Codes has been added just in case you'd like to add them for easy reference"]
[]
["Tab 2: Monthly Product Purchase/Delivery Planner"]
[]
["Once you have an Annual Plan, we ask that you plan your cases needed by-product/by-month, within the school year. For that purpose we have developed a Monthly Planner, which is available under Tab 2. Simply click on Tab 2, and the Monthly Planner is shown. It is already loaded with your Annual Plan, and we ask that you plan the annual case needs in the actual months in the school year when you will menu them."]
[]
["Under the header Annual Total, you will see your total cases by product from Tab 1, and we ask that you manually type in the number of cases you want in the month you want them. At the far end of this chart you see Monthly Total, and the Annual Total must equal the Monthly Total, or the total will appear in RED. GREEN is GOOD!"]
[]
["Tab 3: Product Reference Chart"]
[]
["The last Tab, Tab 3, is simply a Product Reference Chart that gives you a listing of all our products that are available in our Commodity Program, and all of the following key information:"]
[]
["Number of \"DF\" LBS in a finished case "]
["Number of \"Finished\" LBS in a case"]
["Contract value of “DF” by LB and Case"]

{"sheet":"ANNUAL","index":1,"n_rows":44,"n_cols":13,"rows_kept":44,"cut":false,"hidden":false,"merged":[[39,7,39,8],[8,10,8,12],[9,10,9,12],[0,0,1,10],[2,2,2,7],[3,2,3,6],[36,7,37,7],[12,2,12,5],[36,1,36,6],[6,10,6,12],[13,12,15,12]]}
["McCain 2019-20 ANNUAL COMMODITY PLANNER"]
[]
[null,"Ver. 1.10.19"]
[null,null,"Annual LBS Banked (New Diversions + Carry over)"]
[null,null,"Enter Carry-Over Lbs Below"]
[null,"BLK POT (100506)"]
[null,"BLK SWT POT (100980)",null,null,"Total Lbs of","Total Lbs",null,null,"School"]
[null,null,"Enter Total New SY LBS Below",null,"Bank Used","Remaining",null,null,"City",null,null,"State"]
[null,"BLK POT (100506)",null,"BLK POT",{"$f":"K37","v":0},{"$f":"(C6+C9)-K37","v":0},null,null,"RA Number"]
[null,"BLK SWT POT (100980)",null,"BLK SWT POT",{"$f":"L37","v":0},{"$f":"(C7+C10)-L37","v":0},null,null,"Distributor"]
[]
[null,null,null,null,null,null,null,null,null,null,"(A232)","(A212)"]
[null,null,"Annual Product Utilization Plan",null,null,null,null,null,null,null,100506,100980]
[null,null,null,null,null,null,null,null,null,null,"Bulk Raw","Bulk Raw","Distributor Stocking Codes"]
["Select to","CODE","DESCRIPTION","NUTR'L","SERV'S/","SERV'S/","MENU/","SERV'S","CASES",null,"Potatoes","Swt Potatoes"]
["Clear",null,null,"CREDIT","CS","MEAL","YR",null,null,null,"DF LBS","DF LBS"]
[1,null,{"$f":"IF(ISBLANK(B17),\" \",VLOOKUP(B17,ProductCodes,2,FALSE))","v":" "},{"$f":"IF(ISBLANK(B17),\" \",VLOOKUP(B17,ProductCodes,7,FALSE))","v":" "},{"$f":"IF(ISBLANK(B17),\" \",VLOOKUP(B17,ProductCodes,8,FALSE))","v":" "},null,null,{"$f":"F17*G17","v":0},{"$f":"IF(H17=0,0,ROUND(H17/E17,0))","v":0},{"$f":"IF(ISBLANK(B17),\" \",VLOOKUP(B17,ProductCodes,5,FALSE))","v":" "},{"$f":"IF(I17=0,0,IF(J17<>100506,0,VLOOKUP(B17,ProductCodes,3,FALSE)*I17))","v":0},{"$f":"IF(I17=0,0,IF(J17<>100980,0,VLOOKUP(B17,ProductCodes,3,FALSE)*I17))","v":0}]
[2,null," "," "," ",null,null,0,{"$f":"IF(H18=0,0,ROUND(H18/E18,0))","v":0}," ",0,0]
[3,null," "," "," ",null,null,0,0," ",0,0]
[4,null," "," "," ",null,null,0,0," ",0,0]
[5,null," "," "," ",null,null,0,0," ",0,0]
[6,null," "," "," ",null,null,0,0," ",0,0]
[7,null," "," "," ",null,null,0,0," ",0,0]
[8,null," "," "," ",null,null,0,0," ",0,0]
[9,null," "," "," ",null,null,0,0," ",0,0]
[10,null," "," "," ",null,null,0,0," ",0,0]
[11,null," "," "," ",null,null,0,0," ",0,0]
[12,null," "," "," ",null,null,0,0," ",0,0]
[13,null,{"$f":"IF(ISBLANK(B29),\" \",VLOOKUP(B29,ProductCodes,2,FALSE))","v":" "},{"$f":"IF(ISBLANK(B29),\" \",VLOOKUP(B29,ProductCodes,7,FALSE))","v":" "},{"$f":"IF(ISBLANK(B29),\" \",VLOOKUP(B29,ProductCodes,8,FALSE))","v":" "},null,null,{"$f":"F29*G29","v":0},{"$f":"IF(H29=0,0,ROUND(H29/E29,0))","v":0},{"$f":"IF(ISBLANK(B29),\" \",VLOOKUP(B29,ProductCodes,5,FALSE))","v":" "},0,0]
[14,null," "," "," ",null,null,0,0," ",0,0]
[15,null," "," "," ",null,null,0,0," ",0,0]
[16,null," "," "," ",null,null,0,0," ",0,0]
[17,null," "," "," ",null,null,0,0," ",0,0]
[18,null," "," "," ",null,null,0,0," ",0,0]
[19,null," "," "," ",null,null,0,0," ",0,0]
[20,null," "," "," ",null,null,0,0," ",0,0]
[null,"Values in columns with blue headers (above) may be modified.",null,null,null,null,null,"TOTALS",{"$f":"SUM(I17:I36)","v":0},null,{"$f":"SUM(K17:K36)","v":0},{"$f":"SUM(L17:L36)","v":0}]
[null,null,null,null,null,null,null,null,"VALUE-->",null,{"$f":"K37*0.1049","v":0},{"$f":"L37*0.1963","v":0}]
[null,"Selecting red arrow will clear all values in the selected row in Annual and Monthly Plan"]
[null,null,null,null,null,null,null,"DF LBS REMAINING",null,null,{"$f":"(C6+C9)-K37","v":0},{"$f":"(C7+C10)-L37","v":0}]
[]
[null,null,"BULK RAW POTATO CODE REFERENCE"]
[]
[null,null,"BULK RAW SWEET POTATO CODE REFERENCE"]

{"sheet":"MONTHLY","index":2,"n_rows":39,"n_cols":17,"rows_kept":39,"cut":false,"hidden":false,"merged":[[0,1,1,16],[3,5,4,7],[12,2,12,5],[13,1,15,1],[13,2,15,2],[13,6,13,12],[14,4,14,15]]}
[null,"McCain 2019-20 ANNUAL COMMODITY PLANNER                   "]
[]
[]
[null,null,null,null,null,"MONTHLY PLAN"]
[]
[]
[]
[]
[]
[]
[]
[]
[null,null,"Monthly Product Utilization Plan"]
[null,"Code","Description",null,null,null,"ANNUAL/MONTHLY TOTALS MUST BE EQUAL"]
[null,null,null,"Annual","Cases Per Month",null,null,null,null,null,null,null,null,null,null,null,"Monthly"]
[null,null,null,"Total",0,0,0,0,0,0,0,0,0,null,0,0,"Total"]
[1,{"$f":"ANNUAL!B$17","v":0},{"$f":"ANNUAL!C$17","v":" "},{"$f":"ANNUAL!I$17","v":0},0,0,0,0,0,0,0,0,0,null,0,0,{"$f":"SUM(E17:P17)","v":0}]
[2,{"$f":"ANNUAL!B$18","v":0},{"$f":"ANNUAL!C$18","v":" "},{"$f":"ANNUAL!I$18","v":0},0,0,0,0,0,0,0,0,0,0,0,0,0]
[3,{"$f":"ANNUAL!B$19","v":0},{"$f":"ANNUAL!C$19","v":" "},{"$f":"ANNUAL!I$19","v":0},0,0,0,0,0,0,0,0,0,0,0,0,0]
[4,{"$f":"ANNUAL!B$20","v":0},{"$f":"ANNUAL!C$20","v":" "},{"$f":"ANNUAL!I$20","v":0},0,0,0,0,0,0,0,0,0,0,0,0,0]
[5,{"$f":"ANNUAL!B$21","v":0},{"$f":"ANNUAL!C$21","v":" "},{"$f":"ANNUAL!I$21","v":0},0,0,0,0,0,0,0,0,0,0,0,0,0]
[6,{"$f":"ANNUAL!B$22","v":0},{"$f":"ANNUAL!C$22","v":" "},{"$f":"ANNUAL!I$22","v":0},0,0,0,0,0,0,0,0,0,0,0,0,0]
[7,{"$f":"ANNUAL!B$23","v":0},{"$f":"ANNUAL!C$23","v":" "},{"$f":"ANNUAL!I$23","v":0},0,0,0,0,0,0,0,0,0,0,0,0,0]
[8,{"$f":"ANNUAL!B$24","v":0},{"$f":"ANNUAL!C$24","v":" "},{"$f":"ANNUAL!I$24","v":0},0,0,0,0,0,0,0,0,0,0,0,0,0]
[9,{"$f":"ANNUAL!B$25","v":0},{"$f":"ANNUAL!C$25","v":" "},{"$f":"ANNUAL!I$25","v":0},0,0,0,0,0,0,0,0,0,0,0,0,0]
[10,{"$f":"ANNUAL!B$26","v":0},{"$f":"ANNUAL!C$26","v":" "},{"$f":"ANNUAL!I$26","v":0},0,0,0,0,0,0,0,0,0,0,0,0,0]
[11,{"$f":"ANNUAL!B$27","v":0},{"$f":"ANNUAL!C$27","v":" "},{"$f":"ANNUAL!I$27","v":0},0,0,0,0,0,0,0,0,0,0,0,0,0]
[12,{"$f":"ANNUAL!B$28","v":0},{"$f":"ANNUAL!C$28","v":" "},{"$f":"ANNUAL!I$28","v":0},0,0,0,0,0,0,0,0,0,0,0,0,0]
[13,{"$f":"ANNUAL!B$28","v":0},{"$f":"ANNUAL!C$29","v":" "},{"$f":"ANNUAL!I$29","v":0},0,0,0,0,0,0,0,0,0,0,0,0,{"$f":"SUM(E29:P29)","v":0}]
[14,{"$f":"ANNUAL!B$28","v":0},{"$f":"ANNUAL!C$30","v":" "},{"$f":"ANNUAL!I$30","v":0},0,0,0,0,0,0,0,0,0,0,0,0,0]
[15,{"$f":"ANNUAL!B$28","v":0},{"$f":"ANNUAL!C$31","v":" "},{"$f":"ANNUAL!I$31","v":0},0,0,0,0,0,0,0,0,0,0,0,0,0]
[16,{"$f":"ANNUAL!B$28","v":0},{"$f":"ANNUAL!C$32","v":" "},{"$f":"ANNUAL!I$32","v":0},0,0,0,0,0,0,0,0,0,0,0,0,0]
[17,{"$f":"ANNUAL!B$28","v":0},{"$f":"ANNUAL!C$33","v":" "},{"$f":"ANNUAL!I$33","v":0},0,0,0,0,0,0,0,0,0,0,0,0,0]
[18,{"$f":"ANNUAL!B$28","v":0},{"$f":"ANNUAL!C$34","v":" "},{"$f":"ANNUAL!I$34","v":0},0,0,0,0,0,0,0,0,0,0,0,0,0]
[19,{"$f":"ANNUAL!B$28","v":0},{"$f":"ANNUAL!C$35","v":" "},{"$f":"ANNUAL!I$35","v":0},0,0,0,0,0,0,0,0,0,0,0,0,0]
[20,{"$f":"ANNUAL!B$28","v":0},{"$f":"ANNUAL!C$36","v":" "},{"$f":"ANNUAL!I$36","v":0},0,0,0,0,0,0,0,0,0,0,0,0,0]
[null,"Totals",null,{"$f":"ANNUAL!I$37","v":0},{"$f":"SUM(E17:E36)","v":0},{"$f":"SUM(F17:F36)","v":0},0,0,0,0,0,0,0,0,0,0,0]
[]
[null,"To Remove Values, \"Clear\" Rows on Annual Sheet!"]

{"sheet":"PRODUCT REFERENCE","index":3,"n_rows":46,"n_cols":12,"rows_kept":46,"cut":false,"hidden":false,"merged":[[0,11,0,12]]}
["Code","Product Description","DF Lbs/CS","Fini LBS/CS","Commodity","Commodity Desc","Nutritional Credits","Servings per Case","Net Wt per Serving / Oz","Value per pound of DF  (contract value)","Value of DF per \ncase\n","*Used values in McCain Nutritional Equivalency Documents"]
[1000004309,"Harvest Splendor Battered Seasoned Sweet Potato",29.41,15,100980,"SWT POTATO BLK PROCC","1/2 Cup Veg",76.7,3.09,0.1575,{"$f":"J2*C2","v":4.6320750000000004}]
["MCF03725","Harvest Splendor Regular Stix 3/8",29.41,15,100980,"SWT POTATO BLK PROCC","1/2 Cup Veg",76.47,3.1,0.1575,4.6320750000000004]
["MCF03731","Harvest Splendor Thin Stix",29.41,15,100980,"SWT POTATO BLK PROCC","1/2 Cup Veg",75.62,3.13,0.1575,4.6320750000000004]
["MCF04566","Harvest Splendor Deep Groove Crinkles",29.41,15,100980,"SWT POTATO BLK PROCC","1/2 Cup Veg",75.06,3.17,0.1575,4.6320750000000004]
["MCF04712","Harvest Splendor 10-Cut Crinkle Cut Wedge",29.41,15,100980,"SWT POTATO BLK PROCC","1/2 Cup Veg",62.54,3.78,0.1575,4.6320750000000004]
["MCF04965","Harvest Splendor Sweet Potato Maxi Cut",29.41,15,100980,"SWT POTATO BLK PROCC","1/2 Cup Veg",78.28,3.04,0.1575,4.6320750000000004]
["MCF05004","Harvest Splendor® Slim Stix ",58.82,30,100980,"SWT POTATO BLK PROCC","1/2 Cup Veg",151.66,3.12,0.1575,9.2641500000000008]
["MCF05074","Harvest Splendor Crosstrax  Cut Fries ",29.41,15,100980,"SWT POTATO BLK PROCC","1/2 Cup Veg",79.67,2.97,0.1575,4.6320750000000004]
[1000000496,"McCain Crispy Bakeale Seasoned 8-cut Wedge",54.55,30,100506,"POTATO BLK PROC FRZ","1/2 Cup Veg",165.34,2.89,0.1394,7.6042699999999996]
[1000001223,"Incredicrisp 3/8\" Straight Cut Fry",54.55,30,100506,"POTATO BLK PROC FRZ","1/2 Cup Veg",185.62,2.5499999999999998,0.1394,7.6042699999999996]
[1000002789,"Ore-Ida Reduced Sodium Tater Tots Shaped Potatoes",54.55,30,100506,"POTATO BLK PROC FRZ","1/2 Cup Veg",190.5,2.52,0.1394,7.6042699999999996]
[1000002870,"Seasoned Mashed Potatoes Reduced Sodium",43.64,24,100506,"POTATO BLK PROC FRZ","1/2 Cup Veg",88.44,4.3419999999999996,0.1394,6.0834159999999997]
[1000004108,"REDUCED SODIUM BATTERED SEASONED SPIRALS",43.64,24,100506,"POTATO BLK PROC FRZ","1/2 Cup Veg",182.58,2.1,0.1394,6.0834159999999997]
[1000006188,"McCain Hash Brown Rounds",54.55,30,100506,"POTATO BLK PROC FRZ","1/2 Cup Veg",189,2.54,0.1394,7.6042699999999996]
[1000006639,"McCain Emoticon Mashed Potato Shapes",46.418199999999999,24,100506,"POTATO BLK PROC FRZ","1/2 Cup Veg",162.78,2.4,0.1394,6.4706970799999999]
[1000007470,"McCain Crispy Bakeable Deep Groove Crinkle Fries 1/2\"",54.55,30,100506,"POTATO BLK PROC FRZ","1/2 Cup Veg",225.5,2.1,0.1394,7.6042699999999996]
["GFR40","Golden Fry 3/8\" Straight Cut ",54.55,30,100506,"POTATO BLK PROC FRZ","1/2 Cup Veg",210,2.29,0.1394,7.6042699999999996]
["MCF03761","McCain Ovations 3/8\" Crinkle Cut",54.55,30,100506,"POTATO BLK PROC FRZ","1/2 Cup Veg",232.31,2.06,0.1394,7.6042699999999996]
["MCF03762","McCain Ovations 3/8\" Straight Cut",54.55,30,100506,"POTATO BLK PROC FRZ","1/2 Cup Veg",202.65,2.37,0.1394,7.6042699999999996]
["MCF03786","McCain Flavorlast 19/64\" Shoestring",54.55,30,100506,"POTATO BLK PROC FRZ","1/2 Cup Veg",200.43,2.39,0.1394,7.6042699999999996]
["MCF03788","McCain Flavorlast Thick Fries 7/16\"",54.55,30,100506,"POTATO BLK PROC FRZ","1/2 Cup Veg",199.29,2.4,0.1394,7.6042699999999996]
["MCF03927","McCain Deli Roasters ",54.55,30,100506,"POTATO BLK PROC FRZ","1/2 Cup Veg",157.09,3.06,0.1394,7.6042699999999996]
["MCF04812","Roasted Redskin Halves",15,12,100506,"POTATO BLK PROC FRZ","1/2 Cup Veg",61.49,3.12,0.1394,2.0909999999999997]
["MCF04851","Chopped Roasted Redskin Halves ",20,16,100506,"POTATO BLK PROC FRZ","1/2 Cup Veg",81.98,3.12,0.1394,2.7879999999999998]
["MCL03622","McCain Redstone Canyon Spirals",43.64,24,100506,"POTATO BLK PROC FRZ","1/2 Cup Veg",179.7,2.12,0.1394,6.0834159999999997]
["MCL03623","McCain Redstone Canyon Cross Trax",49.09,27,100506,"POTATO BLK PROC FRZ","1/2 Cup Veg",133.47999999999999,3.22,0.1394,6.843146]
["MCL03624","McCain Redstone Canyon Cubes",54.55,30,100506,"POTATO BLK PROC FRZ","1/2 Cup Veg",149.65,3.2,0.1394,7.6042699999999996]
["MCX01","McCain XL 1/4\" Shoestring ",49.09,27,100506,"POTATO BLK PROC FRZ","1/2 Cup Veg",191.7,2.25,0.1394,6.843146]
["MCX03602","McCain Potato Skin Medium",30.91,17,100506,"POTATO BLK PROC FRZ","1/2 Cup Veg",94.35,2.89,0.1394,4.3088540000000002]
["MCX03620","McCain Redstone Canyon 5/16\" Straight Cut",54.55,30,100506,"POTATO BLK PROC FRZ","1/2 Cup Veg",196.9,2.42,0.1394,7.6042699999999996]
["MCX03621","McCain Skin-On Battered Redstone Canyon Straight Cut",54.55,30,100506,"POTATO BLK PROC FRZ","1/2 Cup Veg",197.79,2.41,0.1394,7.6042699999999996]
["MCX03626","McCain Redstone Canyon 8 Cut Wedge",54.55,30,100506,"POTATO BLK PROC FRZ","1/2 Cup Veg",169.08,2.83,0.1394,7.6042699999999996]
["MCX04717","McCain Crispy Seasoned Potato Stix",54.55,30,100506,"POTATO BLK PROC FRZ","1/2 Cup Veg",199.5,2.4,0.1394,7.6042699999999996]
["MCX40","McCain 3/8\" Straight Cut ",54.55,30,100506,"POTATO BLK PROC FRZ","1/2 Cup Veg",210,2.29,0.1394,7.6042699999999996]
["OIF00024A","Ore-Ida Country Style 8 cut Regular Potato Wedges",54.55,30,100506,"POTATO BLK PROC FRZ","1/2 Cup Veg",178.5,2.69,0.1394,7.6042699999999996]
["OIF00055A","Ore-Ida 1/2\" Oven Ready Crinkle Cut",54.55,30,100506,"POTATO BLK PROC FRZ","1/2 Cup Veg",243,1.98,0.1394,7.6042699999999996]
["OIF00215A","Ore-Ida Versitots Tater Tots ",54.55,30,100506,"POTATO BLK PROC FRZ","1/2 Cup Veg",190.5,2.52,0.1394,7.6042699999999996]
["OIF00224A","Ore-Ida Loose Shred",32.729999999999997,18,100506,"POTATO BLK PROC FRZ","1/2 Cup Veg",74.52,3.87,0.1394,4.5625619999999998]
["OIF00880A","Ore-Ida County Style 10-cut Thin Potato Wedges",54.55,30,100506,"POTATO BLK PROC FRZ","1/2 Cup Veg",178.5,2.69,0.1394,7.6042699999999996]
["OIF01028A","Ore-Ida Evercrisp Thin 5/16\" x 3/8\"",54.55,30,100506,"POTATO BLK PROC FRZ","1/2 Cup Veg",193.2,2.4700000000000002,0.1394,7.6042699999999996]
["OIF01037A","Ore-Ida Waffle Cut Fry",49.09,27,100506,"POTATO BLK PROC FRZ","1/2 Cup Veg",143.1,3.02,0.1394,6.843146]
["OIF01038A","-IDA® GOLDEN TWIRLS® SPIRAL CUT FRENCH FRIES",43.64,24,100506,"POTATO BLK PROC FRZ","1/2 Cup Veg",194.4,1.98,0.1394,6.0834159999999997]
["OIF03456","McCain Smiles Shaped Potatoes",43.64,24,100506,"POTATO BLK PROC FRZ","1/2 Cup Veg",159.6,2.41,0.1394,6.0834159999999997]
["OIF03613","Ore-Ida Seasoned Homestyle Mashmakers ",43.64,24,100506,"POTATO BLK PROC FRZ","1/2 Cup Veg",88.44,4.3499999999999996,0.1394,6.0834159999999997]
["SNO63","Snowflake Oven 1/2\" Crinkle Cut ",54.55,30,100506,"POTATO BLK PROC FRZ","1/2 Cup Veg",189,2.54,0.1394,7.6042699999999996]